bitfinex-derivatives/quotes_ETHF0:USTF0_20210702
["timestamp","ask_amount","ask_price","bid_price","bid_amount"]
[1625250102539,3.20527,2086.3,2084.7,3.4897]
[1625250102643,3.20527,2086.3,2084.2,3.1235]
[1625250102746,60.44367,2086.3,2084.2,3.1235]
[1625250102897,59.44367,2086.3,2084.2,3.1235]
[1625250103348,67.79457,2086.3,2084.2,3.1235]
[1625250103448,67.79457,2086.3,2083.5,6.0]
[1625250103753,2.20527,2085.8,2085.7,2.20527]
[1625250103851,5.14547,2085.8,2083.5,5.0]
[1625250104202,1.0,2085.7,2083.5,5.0]
[1625250105354,1.0,2085.7,2083.3,14.7567]
[1625250105704,2.20527,2085.0,2084.6,2.20527]
[1625250107512,1.0,2085.6,2084.6,2.20527]
[1625250107613,1.0,2086.2,2084.6,2.20527]
[1625250107713,2.20527,2085.6,2084.6,2.20527]
[1625250109764,2.20527,2085.3,2085.1,2.20527]
[1625250110716,2.20527,2085.3,2084.6,2.20527]
[1625250110818,2.20527,2085.3,2083.3,14.7567]
[1625250110922,7.20527,2085.3,2083.3,14.7567]
[1625250111372,2.20527,2085.3,2083.3,14.7567]
[1625250111522,2.20527,2085.3,2083.3,19.7567]
[1625250111723,2.20527,2085.3,2084.5,2.20527]
[1625250113729,2.20527,2085.3,2085.2,2.20527]
[1625250113730,4.41054,2085.3,2085.2,2.20527]
[1625250115731,2.20527,2085.3,2085.2,2.20527]
[1625250117458,2.20527,2085.7,2085.2,5.12227]
[1625250117560,15.6047,2086.8,2085.2,5.12227]
[1625250117759,2.20527,2086.2,2085.6,2.20527]
[1625250119812,2.20527,2086.2,2086.1,7.97634]
[1625250121475,2.20527,2086.4,2086.1,7.97634]
[1625250121573,2.1,2087.3,2086.1,7.97634]
[1625250121673,4.24507919,2091.0,2086.1,7.97634]
[1625250121776,2.20527,2087.1,2087.0,2.20527]
[1625250128946,2.20527,2087.5,2087.0,2.20527]
[1625250129046,2.20527,2087.5,2087.0,5.35907]
[1625250129908,2.20527,2087.5,2087.4,2.20527]
[1625250130064,1.0,2088.3,2087.4,2.20527]
[1625250130160,14.9969,2088.8,2087.4,2.20527]
[1625250130408,1.0,2089.3,2087.7,55.0853]
[1625250131868,2.20527,2088.4,2088.3,2.20527]
[1625250132021,2.20527,2088.4,2088.3,5.05017]
[1625250134880,2.20527,2088.4,2088.3,2.20527]
[1625250139953,1.0,2089.2,2087.8,51.3226]
[1625250140051,1.0,2089.7,2087.8,54.8019]
[1625250140154,1.0,2089.5,2087.8,54.8019]
[1625250140454,2.20527,2088.5,2088.4,2.20527]
[1625250140702,2.20527,2088.5,2088.4,5.32467]
[1625250141719,1.0,2089.5,2088.4,5.32467]
[1625250141822,1.1,2090.1,2088.4,5.32467]
[1625250142219,2.1,2090.1,2088.4,5.32467]
[1625250142521,2.20527,2089.0,2088.9,2.20527]
[1625250143172,2.20527,2089.0,2088.9,1.06946437]
[1625250144474,4.41054,2089.0,2088.9,1.06946437]
[1625250147290,4.41054,2089.0,2088.4,3.1194]
[1625250147387,4.41054,2089.0,2087.8,3.4793]
[1625250147488,4.41054,2089.0,2087.7,62.3596]
[1625250148595,2.20527,2089.0,2088.8,2.20527]
[1625250150594,2.20527,2088.9,2088.8,2.20527]
[1625250154565,5.84767,2088.9,2088.8,2.20527]
[1625250154715,5.84767,2088.9,2087.7,15.5724]
[1625250154815,11.84767,2088.9,2087.7,15.5724]
[1625250156718,2.20527,2087.9,2087.7,17.77767]
[1625250156820,4.81757,2087.9,2087.7,2.20527]
[1625250162931,4.81757,2087.9,2087.5,2.20527]
[1625250163233,4.81757,2087.9,2086.1,16.7778]
[1625250163234,9.81757,2087.9,2086.1,16.7778]
[1625250163334,1.0,2087.8,2086.1,15.7778]
[1625250163694,6.0,2087.8,2086.1,15.7778]
[1625250163990,1.0,2087.8,2086.1,15.7778]
[1625250164690,2.20527,2087.2,2087.1,2.20527]
[1625250164794,5.98357,2087.2,2087.1,2.20527]
[1625250168802,3.7783,2087.2,2087.1,2.20527]
[1625250170305,1.0,2087.7,2087.1,2.20527]
[1625250170405,1.87591046,2090.3,2087.1,2.20527]
[1625250170505,16.5085,2088.3,2087.3,49.2456]
[1625250170655,1.87591046,2090.3,2087.3,49.2456]
[1625250170758,2.20527,2088.4,2088.1,2.20527]
[1625250172261,2.20527,2088.4,2087.3,49.2456]
[1625250172357,3.20527,2088.4,2087.3,49.2456]
[1625250172710,2.20527,2088.0,2087.6,2.20527]
[1625250174772,5.32827,2088.0,2087.9,2.20527]
[1625250176957,59.66277,2088.0,2087.9,2.20527]
[1625250177206,5.32827,2088.0,2087.9,2.20527]
[1625250177858,5.32827,2088.0,2087.0,0.9544]
[1625250177958,5.32827,2088.0,2086.5,65.8486]
[1625250178059,1.0,2087.9,2086.5,65.8486]
[1625250178761,1.0,2087.9,2087.8,2.20527]
[1625250178863,5.32827,2088.0,2087.8,2.20527]
[1625250180771,7.53354,2088.0,2087.8,2.20527]
[1625250192954,7.53354,2088.0,2087.8,43.89627]
[1625250193152,5.32827,2088.0,2087.8,43.89627]
[1625250193453,2.20527,2088.0,2087.8,43.89627]
[1625250193558,1.0,2088.5,2087.8,46.58217]
[1625250193655,20.4138,2089.4,2087.8,46.58217]
[1625250193755,1.0,2089.3,2087.8,46.58217]
[1625250194506,1.0,2089.3,2088.6,42.8901]
[1625250194656,15.6548,2089.4,2088.6,42.8901]
[1625250194754,2.70218135,2089.8,2088.6,42.8901]
[1625250194755,2.89168336,2089.8,2088.6,42.8901]
[1625250194856,2.20527,2088.8,2088.7,2.20527]
[1625250197360,2.20527,2089.1,2088.7,2.20527]
[1625250198917,4.41054,2089.1,2089.0,2.20527]
[1625250199016,4.41054,2089.1,2088.7,2.20527]
[1625250199167,7.66234,2089.1,2088.7,2.20527]
[1625250199367,57.43444,2089.1,2088.7,2.20527]
[1625250200426,7.66234,2089.1,2088.7,2.20527]
[1625250200875,2.20527,2088.8,2088.7,2.20527]
[1625250206455,2.08549954,2089.6,2088.7,2.20527]
[1625250206556,0.65049954,2089.6,2088.7,5.63327]
[1625250206656,1.89655848,2089.4,2088.7,6.63327]
[1625250206755,1.89655848,2089.4,2089.2,1.15]
[1625250206855,3.52218003,2089.7,2089.3,1.0]
[1625250207022,4.3349908,2089.9,2089.6,4.41054]
[1625250207168,5.4187385,2090.1,2089.7,4.0542]
[1625250207416,2.20527,2091.8,2089.7,4.0542]
[1625250207767,2.71816184,2091.1,2089.7,4.0542]
[1625250208117,2.20527,2091.8,2089.7,4.0542]
[1625250208369,2.20527,2091.8,2091.1,50.032]
[1625250208472,2.20527,2091.8,2091.1,54.3375]
[1625250208574,2.20527,2091.8,2091.1,4.3055]
[1625250209026,4.41054,2091.8,2091.7,5.10347]
[1625250209976,4.41054,2091.8,2091.7,3.96892626]
[1625250210478,4.41054,2091.8,2091.7,4.96892626]
[1625250210732,4.41054,2091.8,2091.7,3.96892626]
[1625250211793,2.20527,2091.8,2091.7,3.96892626]
[1625250212088,2.20527,2091.8,2091.7,4.96892626]
[1625250215208,2.20527,2092.2,2091.7,4.96892626]
[1625250217059,4.41054,2092.2,2092.1,2.20527]
[1625250217310,9.41054,2092.2,2092.1,2.20527]
[1625250217409,9.41054,2092.2,2091.7,1.07072626]
[1625250217518,11.95054,2092.2,2091.7,1.07072626]
[1625250217762,56.7492,2091.8,2091.7,1.07072626]
[1625250218108,61.7492,2091.8,2091.7,1.07072626]
[1625250218208,56.7492,2091.8,2090.8,1.0]
[1625250218310,5.0,2091.7,2090.8,1.0]
[1625250218410,3.1105,2091.7,2090.8,1.0]
[1625250219063,2.20527,2091.3,2091.2,2.20527]
[1625250223293,2.20527,2091.3,2091.2,3.20527]
[1625250223899,3.1105,2091.7,2091.2,3.20527]
[1625250224000,2.54,2092.2,2091.2,3.20527]
[1625250224098,17.3583,2093.0,2091.2,3.20527]
[1625250224701,5.0,2092.5,2091.2,3.20527]
[1625250225052,3.1367,2092.8,2091.2,3.20527]
[1625250225156,2.20527,2092.0,2091.9,2.20527]
[1625250225352,2.20527,2092.0,2091.9,1.07103198]
[1625250227156,4.41054,2092.0,2091.9,1.07103198]
[1625250228207,4.41054,2092.0,2091.9,2.07103198]
[1625250228308,17.3583,2093.0,2091.9,2.07103198]
[1625250228610,3.0,2093.0,2091.9,2.07103198]
[1625250229264,2.20527,2092.6,2092.5,2.20527]
[1625250229563,2.20527,2092.6,2092.5,3.20527]
[1625250229663,2.20527,2092.6,2092.5,1.0]
[1625250231165,4.41054,2092.6,2092.5,1.0]
[1625250236035,3.0,2093.0,2092.5,1.0]
[1625250237240,5.20527,2093.0,2092.8,2.20527]
[1625250237439,5.20527,2093.0,2092.5,1.0]
[1625250239204,2.20527,2092.6,2092.5,1.0]
[1625250240563,2.20527,2092.6,2092.4,2.20527]
[1625250240764,10.95467,2092.6,2087.9,4.44417105]
[1625250240964,5.95467,2092.6,2087.8,4.44428312]
[1625250241066,5.0,2092.5,2090.3,14.6238]
[1625250241264,2.20527,2091.7,2091.6,2.20527]
[1625250241364,4.90657,2091.7,2091.6,2.20527]
[1625250241465,60.72427,2091.7,2091.6,2.20527]
[1625250242071,60.72427,2091.7,2091.4,2.20527]
[1625250242169,65.72427,2091.7,2090.4,1.0]
[1625250242317,60.72427,2091.7,2090.4,1.0]
[1625250242524,5.0,2091.6,2090.4,1.0]
[1625250243273,2.20527,2090.6,2090.5,2.20527]
[1625250243374,2.20527,2090.6,2090.5,3.20527]
[1625250245284,4.41054,2090.6,2090.5,3.20527]
[1625250248836,55.8177,2091.7,2090.5,3.20527]
[1625250249042,5.0,2092.0,2090.5,3.20527]
[1625250249288,2.20527,2090.8,2090.5,3.20527]
[1625250250542,2.20527,2091.0,2090.5,3.20527]
[1625250251293,2.20527,2091.0,2090.8,2.20527]
[1625250251392,2.20527,2091.0,2090.9,1.0]
[1625250253561,2.20527,2091.0,2090.9,3.3136]
[1625250255549,2.20527,2091.3,2090.9,3.3136]
[1625250255808,2.20527,2091.3,2090.9,2.3136]
[1625250255903,2.20527,2091.3,2091.0,1.0]
[1625250257354,2.20527,2091.3,2091.2,2.20527]
[1625250257456,2.20527,2091.3,2091.2,3.20527]
[1625250257708,14.5188,2092.3,2091.2,3.20527]
[1625250258008,4.1,2093.0,2091.2,3.20527]
[1625250258009,3.0,2093.0,2091.2,3.20527]
[1625250258116,8.0,2093.0,2091.2,3.20527]
[1625250259420,2.20527,2091.8,2091.2,5.41054]
[1625250260070,8.0,2093.0,2091.2,5.41054]
[1625250260375,3.0,2093.0,2091.2,5.41054]
[1625250261078,8.0,2093.0,2091.2,5.41054]
[1625250261331,2.20527,2092.1,2091.8,2.20527]
[1625250261479,2.20527,2092.1,2091.8,5.98467]
[1625250261680,2.20527,2092.1,2091.8,3.7794]
[1625250267390,2.20527,2092.1,2091.8,5.98467]
[1625250268145,2.20527,2092.1,2091.8,3.7794]
[1625250271250,1.0,2092.7,2091.8,3.7794]
[1625250271451,2.20527,2092.2,2091.9,2.20527]
[1625250271550,2.20527,2092.2,2092.0,1.0]
[1625250271951,2.20527,2092.2,2091.8,2.7794]
[1625250272101,2.20527,2092.2,2091.7,1.0]
[1625250273505,2.20527,2091.8,2091.7,1.0]
[1625250274508,2.20527,2092.2,2091.7,1.0]
[1625250274657,2.20527,2092.2,2091.7,4.5254]
[1625250279535,2.20527,2092.2,2091.8,2.20527]
[1625250279638,2.20527,2092.2,2091.9,1.0]
[1625250280991,2.20527,2092.2,2091.9,41.9312]
[1625250281192,2.20527,2092.2,2091.9,1.0]
[1625250283761,2.20527,2092.2,2091.5,2.20527]
[1625250283962,4.79117,2092.2,2091.5,2.20527]
[1625250284215,4.79117,2092.2,2089.5,5.0]
[1625250284764,52.1452,2091.9,2089.5,5.0]
[1625250284866,52.1452,2091.9,2090.6,1.0]
[1625250285517,2.20527,2091.4,2091.1,2.20527]
[1625250285618,2.20527,2091.4,2091.2,1.0]
[1625250289593,2.20527,2091.4,2091.2,3.20527]
[1625250289985,2.20527,2091.4,2091.3,40.619]
[1625250290090,2.20527,2091.4,2091.3,41.619]
[1625250290840,2.20527,2091.4,2091.3,44.9557]
[1625250292547,2.20527,2091.4,2091.3,4.3367]
[1625250293919,3.0,2092.7,2091.3,4.3367]
[1625250295019,6.56073082,2092.7,2091.3,4.3367]
[1625250295119,69.8128,2092.6,2091.3,4.3367]
[1625250295470,73.37285473,2092.6,2091.3,4.3367]
[1625250295574,73.37285473,2092.6,2091.7,2.20527]
[1625250295575,2.20527,2091.9,2091.7,2.20527]
[1625250295675,2.20527,2091.9,2091.7,3.20527]
[1625250299253,2.20527,2091.9,2091.7,2.20527]
[1625250299510,2.20527,2091.9,2091.7,3.20527]
[1625250301767,2.20527,2091.9,2091.8,48.4587]
[1625250301916,2.20527,2091.9,2091.8,51.8063]
[1625250302676,15.8768,2092.6,2091.8,51.8063]
[1625250302976,3.0,2092.7,2091.8,51.8063]
[1625250303679,2.20527,2092.4,2091.8,51.8063]
[1625250305682,2.20527,2092.4,2092.0,2.20527]
[1625250306734,2.20527,2092.4,2092.3,50.3402]
[1625250307484,2.20527,2092.4,2092.3,51.3402]
[1625250307685,2.20527,2092.4,2092.3,53.54547]
[1625250310593,2.20527,2092.4,2092.3,6.00717]
[1625250310692,2.20527,2092.4,2092.3,2.20527]
[1625250310842,2.20527,2092.4,2092.0,2.20527]
[1625250311142,55.25487,2092.4,2092.0,2.20527]
[1625250311492,55.25487,2092.4,2091.3,1.41112868]
[1625250311693,55.25487,2092.4,2092.0,2.20527]
[1625250312149,2.20527,2092.4,2092.0,2.20527]
[1625250313668,2.20527,2092.4,2092.1,1.0]
[1625250313771,2.20527,2092.2,2092.1,1.0]
[1625250316333,2.20527,2092.2,2092.0,2.20527]
[1625250316884,2.20527,2092.2,2092.1,1.0]
[1625250317286,2.20527,2092.2,2092.1,54.9796]
[1625250317387,2.20527,2092.2,2092.1,57.7806]
[1625250319240,2.20527,2092.2,2092.1,3.801]
[1625250320643,2.20527,2092.2,2092.1,58.4968]
[1625250321141,3.0,2092.7,2092.1,58.4968]
[1625250321746,5.20527,2092.7,2092.1,58.4968]
[1625250323802,5.20527,2092.7,2092.3,2.20527]
[1625250323902,5.20527,2092.7,2092.4,1.0]
[1625250325452,5.20527,2092.7,2092.5,56.928]
[1625250325552,5.20527,2092.7,2092.5,57.928]
[1625250325654,5.20527,2092.7,2092.5,56.928]
[1625250325858,5.20527,2092.7,2092.5,57.928]
[1625250326056,5.20527,2092.7,2092.5,56.928]
[1625250326915,5.20527,2092.7,2092.5,57.928]
[1625250327215,5.20527,2092.7,2092.3,2.20527]
[1625250327765,5.20527,2092.7,2092.5,57.3064]
[1625250327966,5.20527,2092.7,2092.4,1.0]
[1625250329893,2.20527,2092.5,2092.4,1.0]
[1625250331600,3.0,2092.7,2092.4,1.0]
[1625250333912,3.0,2092.7,2092.6,2.20527]
[1625250334164,3.0,2092.7,2092.6,3.20527]
[1625250334667,3.0,2092.7,2092.6,2.20527]
[1625250335514,3.0,2092.7,2092.6,3.20527]
[1625250336563,3.0,2092.7,2092.6,2.20527]
[1625250337116,3.0,2092.7,2092.6,3.20527]
[1625250337366,3.0,2092.7,2092.6,2.20527]
[1625250337969,5.20527,2092.7,2092.6,2.20527]
[1625250341137,7.84957,2092.7,2092.6,2.20527]
[1625250341288,7.84957,2092.7,2091.9,1.0]
[1625250341938,7.84957,2092.7,2092.3,2.20527]
[1625250342038,7.84957,2092.7,2092.4,1.0]
[1625250342319,43.7729,2092.5,2092.3,2.20527]
[1625250342777,43.7729,2092.5,2092.1,2.20527]
[1625250342778,43.7729,2092.5,2091.5,1.41040867]
[1625250342919,43.7729,2092.5,2091.3,17.11498653]
[1625250343019,44.7283,2092.5,2091.3,1.41048653]
[1625250343118,44.7283,2092.5,2091.1,2.82097307]
[1625250343321,1.1,2092.4,2091.1,2.82097307]
[1625250343420,7.51783602,2092.4,2091.1,2.82097307]
[1625250343672,50.0727,2091.0,2090.6,1.41083555]
[1625250343769,52.6313,2091.0,2090.6,1.41083555]
[1625250343972,2.20527,2090.9,2090.8,2.20527]
[1625250345923,4.41054,2090.9,2090.8,2.20527]
[1625250346326,4.41054,2090.9,2090.8,3.20527]
[1625250346779,4.41054,2090.9,2090.8,57.98207]
[1625250346880,4.41054,2090.9,2090.8,58.93397]
[1625250347441,4.41054,2090.9,2090.8,4.15717]
[1625250349044,4.41054,2090.9,2090.8,60.56177]
[1625250349745,14.6387,2092.0,2090.8,60.56177]
[1625250349849,2.73520808,2092.2,2090.8,64.14427]
[1625250349949,2.20527,2091.9,2091.8,2.20527]
[1625250350602,2.20527,2091.9,2091.8,49.03027]
[1625250350702,2.20527,2091.9,2091.8,2.20527]
[1625250352261,2.20527,2091.9,2091.8,3.20527]
[1625250353662,2.20527,2091.9,2091.8,2.20527]
[1625250355818,2.20527,2091.9,2091.8,3.20527]
[1625250356266,2.20527,2091.9,2091.8,2.20527]
[1625250356473,2.20527,2091.9,2091.8,3.20527]
[1625250356772,2.20527,2091.9,2091.8,2.20527]
[1625250383098,46.2037,2092.1,2091.6,1.0]
[1625250383197,2.9755,2091.9,2091.6,1.0]
[1625250384163,5.18077,2091.9,2091.8,2.20527]
[1625250384968,5.18077,2091.9,2090.8,2.82391913]
[1625250385067,5.18077,2091.9,2089.6,9.88492167]
[1625250385068,5.18077,2091.9,2090.7,17.76729099]
[1625250385420,5.18077,2091.9,2090.7,14.9427]
[1625250385619,2.3468,2091.3,2090.7,14.9427]
[1625250385921,2.3468,2091.3,2090.5,2.82470684]
[1625250386019,2.3468,2091.3,2090.6,1.0]
[1625250386122,43.7176,2091.1,2090.6,1.0]
[1625250386221,2.20527,2091.0,2090.9,2.20527]
[1625250387074,2.20527,2091.0,2090.3,1.97746176]
[1625250388175,2.20527,2091.0,2090.4,2.20527]
[1625250388176,2.20527,2090.7,2090.4,2.20527]
[1625250388274,5.34567,2090.7,2090.4,2.20527]
[1625250389176,5.34567,2090.7,2090.5,1.0]
[1625250390182,5.34567,2090.7,2090.6,2.20527]
[1625250390331,3.1404,2090.7,2090.6,3.20527]
[1625250391634,2.20527,2091.0,2090.6,3.20527]
[1625250392036,50.67717,2091.0,2090.6,3.20527]
[1625250392135,2.20527,2091.0,2090.6,3.20527]
[1625250392234,2.20527,2091.0,2090.9,2.20527]
[1625250395048,2.20527,2091.0,2090.6,3.20527]
[1625250395597,2.3468,2091.3,2090.6,3.20527]
[1625250395797,91.1849,2091.8,2090.6,3.20527]
[1625250395898,96.1849,2091.8,2090.6,3.20527]
[1625250396100,91.1849,2091.8,2090.6,3.20527]
[1625250396212,2.20527,2091.1,2090.6,3.20527]
[1625250396300,5.17057,2091.1,2090.6,3.20527]
[1625250397061,5.17057,2091.1,2090.6,2.20527]
[1625250397167,10.17057,2091.1,2090.3,1.97646642]
[1625250397611,10.17057,2091.1,2090.0,4.759]
[1625250397711,51.0052,2090.1,2090.0,4.759]
[1625250397962,51.0052,2090.1,2089.7,1.97623523]
[1625250398212,53.21047,2090.1,2090.0,4.41054]
[1625250398517,53.21047,2090.1,2089.6,1.0]
[1625250399377,5.03527,2090.1,2089.6,1.0]
[1625250400078,5.03527,2090.1,2089.4,56.4733]
[1625250400178,2.20527,2090.1,2089.4,57.4733]
[1625250400278,2.20527,2090.1,2089.9,2.20527]
[1625250401782,2.20527,2090.1,2089.7,2.20527]
[1625250401783,5.29017,2090.1,2089.7,2.20527]
[1625250402234,2.20527,2089.8,2089.7,2.20527]
[1625250407317,2.20527,2089.8,2089.7,3.20527]
[1625250407665,2.20527,2089.8,2089.7,2.20527]
[1625250407866,4.77317,2089.8,2089.7,3.20527]
[1625250408016,4.77317,2089.8,2089.7,1.0]
[1625250408115,60.48277,2089.8,2089.7,1.0]
[1625250408217,4.77317,2089.8,2089.3,2.20527]
[1625250408317,4.77317,2089.8,2089.3,4.41054]
[1625250408870,4.77317,2089.8,2089.3,5.41054]
[1625250410272,2.20527,2089.4,2089.3,5.41054]
[1625250412475,2.20527,2089.4,2089.3,4.41054]
[1625250412579,2.20527,2089.4,2088.9,5.759]
[1625250412930,56.1808,2089.1,2088.9,1.0]
[1625250413031,59.5967,2089.1,2088.9,1.0]
[1625250413127,59.5967,2089.1,2088.4,1.97013207]
[1625250413479,59.5967,2089.1,2088.2,6.72922173]
[1625250413587,59.5967,2089.1,2088.3,1.0]
[1625250414279,2.20527,2088.9,2088.8,2.20527]
[1625250415184,2.20527,2088.9,2088.5,2.20527]
[1625250416038,2.20527,2088.9,2088.5,3.20527]
[1625250416389,2.20527,2088.6,2088.5,3.20527]
[1625250420021,5.77007,2088.6,2088.5,3.20527]
[1625250420222,3.5648,2088.6,2088.5,3.20527]
[1625250420469,3.5648,2088.6,2088.5,2.20527]
[1625250420570,3.5648,2088.6,2088.5,3.20527]
[1625250420970,2.20527,2088.9,2088.5,3.20527]
[1625250421321,2.20527,2089.1,2088.5,6.00827]
[1625250421421,1.1,2090.4,2088.5,6.00827]
[1625250421521,75.2738,2091.0,2088.5,6.00827]
[1625250421722,2.0529,2090.8,2088.5,6.00827]
[1625250421821,2.0529,2090.8,2089.0,53.7165]
[1625250421925,2.0529,2090.8,2089.1,1.0]
[1625250422230,5.0,2090.6,2089.1,1.0]
[1625250422329,2.20527,2089.7,2089.4,2.20527]
[1625250422428,2.20527,2089.7,2089.4,3.20527]
[1625250422577,2.20527,2089.9,2089.4,3.20527]
[1625250422830,14.7872,2090.9,2089.4,3.20527]
[1625250423028,14.7872,2090.9,2090.2,58.5791]
[1625250423179,14.7872,2090.9,2090.2,62.7463]
[1625250423282,1.88825664,2091.7,2090.2,62.7463]
[1625250423379,3.50676233,2092.0,2090.2,62.7463]
[1625250423380,5.0,2091.6,2090.2,62.7463]
[1625250423480,1.88923245,2092.0,2090.2,62.7463]
[1625250423730,1.1,2092.1,2090.2,62.7463]
[1625250424031,1.1,2092.1,2090.2,4.1672]
[1625250424381,2.20527,2090.7,2090.6,2.20527]
[1625250426338,4.41054,2090.7,2090.6,2.20527]
[1625250429543,4.41054,2090.7,2090.6,3.20527]
[1625250430845,4.41054,2090.7,2090.6,2.20527]
[1625250431049,4.41054,2090.7,2090.6,3.20527]
[1625250431647,4.41054,2090.7,2090.6,5.67327]
[1625250431896,1.89227686,2092.3,2090.6,59.78677]
[1625250432146,15.4116,2092.4,2090.6,59.78677]
[1625250432147,17.30397892,2092.4,2090.6,59.78677]
[1625250432358,2.20527,2091.5,2091.4,2.20527]
[1625250434174,2.20527,2091.5,2090.6,1.0]
[1625250434374,2.20527,2091.2,2091.0,2.20527]
[1625250434476,2.20527,2091.2,2091.0,3.20527]
[1625250435483,2.20527,2091.2,2091.0,1.0]
[1625250435733,2.20527,2091.2,2090.8,2.20527]
[1625250436386,2.20527,2090.9,2090.8,2.20527]
[1625250437189,2.20527,2090.9,2090.8,3.20527]
[1625250442605,2.20527,2090.9,2090.8,6.53257]
[1625250443355,2.20527,2091.2,2090.8,6.53257]
[1625250444466,2.20527,2091.2,2090.8,8.73784]
[1625250447631,1.89413976,2092.2,2090.8,8.73784]
[1625250447781,1.89413976,2092.2,2090.8,13.73784]
[1625250448036,1.89413976,2092.2,2092.1,56.3466]
[1625250448134,1.89413976,2092.2,2092.1,60.7679]
[1625250448240,3.0,2092.5,2092.1,60.7679]
[1625250448488,3.0,2092.5,2092.4,2.20527]
[1625250448590,3.0,2092.5,2092.4,3.20527]
[1625250449551,3.0,2092.5,2092.4,2.20527]
[1625250450001,62.7582,2092.5,2092.4,2.20527]
[1625250451456,3.0,2092.5,2092.4,2.20527]
[1625250452759,3.0,2092.5,2092.0,3.20527]
[1625250453009,6.0321,2092.5,2092.0,2.20527]
[1625250453109,6.0321,2092.5,2090.9,15.1173]
[1625250453963,45.2797,2092.2,2090.9,15.1173]
[1625250454113,45.2797,2092.2,2091.0,1.0]
[1625250454513,47.48497,2092.2,2091.8,2.20527]
[1625250455323,47.48497,2092.2,2091.9,1.0]
[1625250456076,2.20527,2092.2,2091.9,1.0]
[1625250456325,6.0321,2092.5,2091.9,1.0]
[1625250456724,57.582,2092.3,2091.9,1.0]
[1625250458035,57.582,2092.3,2091.8,2.20527]
[1625250458488,57.582,2092.3,2091.8,3.20527]
[1625250458589,59.78727,2092.3,2091.8,3.20527]
[1625250458688,2.20527,2092.3,2091.8,3.20527]
[1625250460590,2.20527,2092.3,2092.1,2.20527]
[1625250460843,2.20527,2092.3,2092.2,1.0]
[1625250462093,46.95407,2092.3,2092.2,1.0]
[1625250462194,2.20527,2092.3,2092.2,1.0]
[1625250465227,2.20527,2092.3,2092.1,2.20527]
[1625250465324,5.78477,2092.3,2092.1,2.20527]
[1625250465826,5.78477,2092.3,2090.9,15.1173]
[1625250466328,53.4237,2091.9,2090.9,15.1173]
[1625250466426,53.4237,2091.9,2091.0,1.0]
[1625250466630,2.20527,2091.6,2091.4,2.20527]
[1625250466732,2.20527,2091.6,2091.5,1.0]
[1625250469587,2.20527,2091.6,2091.5,55.7239]
[1625250470838,3.0,2092.5,2091.5,55.7239]
[1625250470988,3.0,2092.5,2091.5,58.8214]
[1625250472192,3.0,2092.5,2092.1,42.0423]
[1625250472344,3.0,2092.5,2092.2,1.0]
[1625250472493,3.0,2092.5,2092.2,4.2265]
[1625250472698,3.0,2092.5,2092.4,2.20527]
[1625250472802,3.0,2092.5,2092.4,3.20527]
[1625250476152,3.0,2092.5,2092.4,62.56987]
[1625250476253,3.0,2092.5,2092.4,3.20527]
[1625250476858,3.0,2092.5,2092.4,62.56987]
[1625250476958,3.0,2092.5,2092.4,3.20527]
[1625250479271,3.0,2092.5,2092.4,6.20037]
[1625250482442,0.38950924,2094.0,2092.4,6.20037]
[1625250482544,0.38950924,2094.0,2092.4,11.20037]
[1625250482800,0.38950924,2094.0,2093.9,7.27414]
[1625250482903,2.7164279,2094.2,2093.9,59.07654]
[1625250483549,2.20527,2094.8,2093.9,59.07654]
[1625250483847,2.20527,2094.8,2093.9,8.27414]
[1625250484250,44.7601,2094.7,2093.9,8.27414]
[1625250484753,44.7601,2094.7,2094.6,4.41054]
[1625250485054,49.7601,2094.7,2094.6,4.41054]
[1625250485359,49.7601,2094.7,2093.9,1.0]
[1625250485457,52.2415,2094.7,2093.1,3.806]
[1625250485557,52.2415,2094.7,2093.2,1.0]
[1625250486609,52.2415,2094.7,2092.5,15.6684]
[1625250486709,56.4567,2093.8,2092.6,1.0]
[1625250486811,2.20527,2093.7,2093.6,2.20527]
[1625250487562,2.20527,2093.7,2093.4,3.20527]
[1625250487712,2.20527,2093.7,2093.4,2.20527]
[1625250488513,2.20527,2093.7,2092.5,15.6684]
[1625250488821,2.20527,2092.9,2092.7,2.20527]
[1625250488922,4.50747,2092.9,2092.7,2.20527]
[1625250489130,4.50747,2092.9,2092.7,3.20527]
[1625250489931,4.50747,2092.9,2092.7,2.20527]
[1625250490733,4.50747,2092.9,2092.8,1.0]
[1625250490832,4.50747,2092.9,2092.7,2.20527]
[1625250490933,2.3022,2092.9,2092.7,2.20527]
[1625250491134,2.3022,2092.9,2092.8,1.0]
[1625250491536,2.20527,2093.4,2092.8,1.0]
[1625250491889,51.8627,2093.1,2092.8,1.0]
[1625250492238,2.20527,2093.4,2092.8,1.0]
[1625250492688,5.19014795,2094.7,2092.8,3.7515]
[1625250492785,3.30527,2094.3,2094.0,2.20527]
[1625250492885,1.1,2094.3,2094.0,4.59767]
[1625250492985,2.20527,2094.5,2094.0,4.59767]
[1625250493087,2.20527,2094.5,2094.0,5.59767]
[1625250493187,2.70958009,2094.9,2094.0,5.59767]
[1625250493338,2.70958009,2094.9,2094.0,63.95657]
[1625250493439,2.70958009,2094.9,2094.0,5.59767]